bitfinex/quotes_ETHUSD_20240618
["timestamp","ask_amount","ask_price","bid_price","bid_amount"]
[1718680256295,1.40143091,3429.5,3428.5,3.0]
[1718680256521,1.40143091,3429.4,3429.0,0.05385602]
[1718680256749,1.40143091,3429.5,3428.6,0.883363]
[1718680256892,1.40143091,3429.4,3429.1,0.05385602]
[1718680257095,3.48643091,3429.4,3428.2,2.398]
[1718680257326,0.58978309,3429.3,3429.2,0.05395375]
[1718680257624,0.58978309,3429.3,3428.2,2.398]
[1718680257828,1.40157431,3429.2,3428.3,0.05395375]
[1718680258134,2.085,3429.4,3428.3,0.05395375]
[1718680258338,1.40133597,3429.2,3428.3,0.05395375]
[1718680258630,1.40133597,3429.2,3428.4,0.53690038]
[1718680258797,1.40133597,3429.2,3428.5,0.05407495]
[1718680259197,2.4114,3429.5,3428.5,0.05407495]
[1718680259526,1.40148775,3429.3,3428.5,0.05407495]
[1718680259737,3.48647165,3429.3,3428.5,0.05407495]
[1718680259897,2.4114,3429.5,3428.5,0.05407495]
[1718680259898,3.48647165,3428.9,3428.5,0.05407495]
[1718680260098,1.40147165,3428.8,3428.0,0.45695939]
[1718680260293,1.40147165,3428.8,3427.7,5.1864]
[1718680260520,1.40147165,3428.8,3428.1,0.05406713]
[1718680260797,1.40147165,3428.8,3428.2,0.05406713]
[1718680260996,1.40147165,3428.9,3428.2,0.29711871]
[1718680261218,1.40147165,3428.9,3427.8,2.91725]
[1718680261594,1.40147165,3428.9,3427.7,2.269]
[1718680261595,1.40147165,3429.0,3427.9,2.97129713]
[1718680261800,1.40147165,3428.9,3427.9,0.05406713]
[1718680262001,1.40147165,3428.9,3427.7,5.18638]
[1718680262303,2.085,3429.3,3427.8,0.05406713]
[1718680262304,1.40147165,3429.0,3427.8,0.05406713]
[1718680262503,1.40147165,3428.8,3427.8,0.05406713]
[1718680262731,1.75011882,3428.7,3427.8,0.05406713]
[1718680262904,2.085,3428.5,3427.3,2.4766]
[1718680263128,1.40147165,3428.5,3427.9,0.05406713]
[1718680263329,2.70544717,3428.7,3427.3,2.4766]
[1718680263330,1.40147165,3428.6,3427.3,2.4766]
[1718680263528,1.40147165,3428.5,3427.3,2.4766]
[1718680263853,3.87179283,3428.4,3427.4,0.05241364]
[1718680264255,2.47032118,3428.4,3426.9,2.91807]
[1718680264552,1.40147165,3428.2,3427.5,0.05241364]
[1718680264761,2.47032118,3428.4,3426.0,7.43]
[1718680264762,2.085,3427.7,3426.3,2.299]
[1718680264918,1.40147165,3427.7,3426.3,5.21755]
[1718680265114,1.40147165,3427.6,3426.4,0.86699744]
[1718680265338,5.80887165,3427.8,3426.4,0.86699744]
[1718680265756,1.40147165,3427.7,3426.4,0.86699744]
[1718680266065,1.39958719,3427.7,3426.4,0.05337544]
[1718680266224,5.80698719,3427.8,3426.4,0.05337544]
[1718680266424,5.80683065,3427.8,3426.4,0.05337544]
[1718680267262,4.4074,3427.8,3426.4,0.05337544]
[1718680267436,0.58068307,3427.7,3426.4,0.05337544]
[1718680267755,2.085,3427.4,3426.4,0.05337544]
[1718680267918,2.085,3427.4,3425.9,2.3751]
[1718680268123,2.085,3427.4,3426.5,0.05337544]
[1718680268318,2.085,3427.4,3425.9,2.3751]
[1718680268547,0.2085,3427.3,3426.6,0.05425578]
[1718680268745,0.2085,3427.3,3425.9,2.3751]
[1718680268959,0.2085,3427.3,3426.7,0.05425578]
[1718680269177,0.2085,3427.3,3425.9,2.3751]
[1718680269320,2.085,3427.5,3426.0,0.60836937]
[1718680269520,2.085,3427.5,3426.4,2.9185]
[1718680269832,2.085,3427.5,3426.5,0.05835849]
[1718680270224,2.085,3427.5,3426.6,0.05440066]
[1718680270423,2.085,3427.5,3426.1,2.91873]
[1718680270622,2.085,3427.5,3426.2,0.529383]
[1718680270828,2.085,3427.5,3426.2,0.58370143]
[1718680271076,2.67,3427.9,3426.3,2.97694559]
[1718680271294,2.67,3427.9,3426.8,2.2653]
[1718680271429,2.67,3427.9,3426.9,0.05835004]
[1718680271752,2.67,3427.9,3427.0,2.91798]
[1718680271955,2.085,3428.1,3427.0,0.0542597]
[1718680272129,2.085,3428.1,3427.0,0.57802467]
[1718680272465,2.085,3428.1,3427.1,0.05835003]
[1718680272638,2.085,3428.1,3427.1,0.05405222]
[1718680273567,2.085,3428.1,3427.2,0.05834914]
[1718680273959,2.085,3428.1,3427.3,0.05400917]
[1718680274166,2.57822212,3428.1,3427.3,0.05400917]
[1718680274326,2.57822212,3428.1,3426.8,2.2653]
[1718680274528,2.57822212,3428.1,3427.4,0.05400917]
[1718680274529,2.085,3428.1,3427.4,0.05400917]
[1718680274829,2.085,3428.1,3426.8,2.2653]
[1718680274830,3.0,3428.6,3427.5,0.05400917]
[1718680275029,7.38,3428.7,3427.1,0.05834691]
[1718680275030,2.085,3428.7,3427.1,0.05834691]
[1718680275231,5.085,3428.7,3427.2,0.05400917]
[1718680275433,5.085,3428.7,3427.3,0.05834352]
[1718680275655,6.12157,3428.7,3427.4,0.35715455]
[1718680275928,6.12157,3428.7,3427.5,0.05834352]
[1718680276674,6.12157,3428.7,3427.6,0.05413828]
[1718680276981,4.03657,3428.7,3427.7,2.31364355]
[1718680277268,3.0,3428.9,3427.8,0.05833758]
[1718680277577,3.0,3428.9,3427.8,0.1123389]
[1718680279032,3.0,3428.9,3427.8,0.05400132]
[1718680279233,3.0,3428.9,3427.7,2.2553]
[1718680279433,0.93948132,3428.8,3427.8,0.05388395]
[1718680279633,0.93948132,3428.8,3427.7,2.51113163]
[1718680279832,0.93948132,3428.8,3427.8,0.05388395]
[1718680280058,0.93948132,3428.8,3427.7,2.51113163]
[1718680280282,2.33929456,3428.8,3427.8,0.05388395]
[1718680280434,1.03342946,3428.7,3427.7,2.51113163]
[1718680280766,1.03342946,3428.7,3427.8,0.05388395]
[1718680281175,2.43348452,3428.7,3427.8,0.05388395]
[1718680282171,1.03342946,3428.7,3427.8,0.05388395]
[1718680282475,1.39987065,3428.6,3427.8,0.05388395]
[1718680283269,1.39987065,3428.5,3427.8,0.05388395]
[1718680284863,1.39987065,3428.5,3427.8,0.11222169]
[1718680285177,1.39987065,3428.5,3427.9,0.26233533]
[1718680285375,1.39976873,3428.5,3427.9,0.26233533]
[1718680285581,1.39976873,3428.4,3427.7,2.2553]
[1718680285889,1.39976873,3428.4,3427.8,0.05833775]
[1718680286392,1.39976873,3428.4,3427.9,0.05388395]
[1718680287096,1.39976873,3428.4,3427.2,2.3526]
[1718680287097,1.39976873,3428.0,3426.8,7.43]
[1718680287248,1.40008641,3427.9,3426.9,0.78873033]
[1718680287587,1.40008641,3427.6,3426.7,2.3526]
[1718680287781,1.40008641,3427.5,3426.7,2.3526]
[1718680287946,1.40008641,3427.6,3426.7,2.3526]
[1718680288149,1.40008641,3427.5,3426.7,2.3526]
[1718680288347,1.40008641,3427.5,3426.8,0.527102]
[1718680288573,1.40008641,3427.5,3426.8,0.58075512]
[1718680289485,1.40008641,3427.4,3426.8,0.58075512]
[1718680289697,2.085,3428.1,3426.8,0.58075512]
[1718680289698,1.40008641,3427.5,3426.8,0.58075512]
[1718680289986,2.085,3428.1,3426.9,0.58516851]
[1718680290170,1.39863674,3427.6,3426.9,0.58516851]
[1718680290362,1.39863674,3427.7,3426.9,0.58516851]
[1718680290562,1.39863674,3427.6,3427.0,0.05393093]
[1718680291664,2.085,3428.1,3427.0,0.05393093]
[1718680291665,1.39863674,3427.5,3427.0,0.05393093]
[1718680293789,1.39863674,3427.5,3427.0,0.35310087]
[1718680294103,1.39863674,3427.5,3427.0,0.05393093]
[1718680294306,1.39863674,3427.4,3426.7,2.3526]
[1718680294588,1.39863674,3427.4,3427.1,0.05391136]
[1718680294793,1.39863674,3427.4,3426.7,2.3526]
[1718680294976,1.39863674,3427.4,3427.2,0.05391136]
[1718680295179,2.085,3428.1,3426.8,0.527093]
[1718680295180,1.39863674,3427.5,3426.8,0.527093]
[1718680295385,1.39863674,3427.4,3427.3,0.05391136]
[1718680295580,1.39863674,3427.5,3426.8,0.527093]
[1718680295757,1.39863674,3427.4,3427.3,0.05391136]
[1718680295957,1.39863674,3427.5,3427.3,0.05391136]
[1718680296199,2.58984727,3428.3,3426.7,2.3526]
[1718680296200,1.39863674,3427.4,3426.7,2.3526]
[1718680299058,1.39863674,3427.3,3426.7,2.3526]
[1718680299470,1.39863674,3427.4,3426.7,2.3526]
[1718680299668,1.39863674,3427.3,3426.8,0.527092]
[1718680302100,1.39637173,3427.3,3426.8,0.527092]
[1718680303401,1.39637173,3427.4,3426.8,0.527092]
[1718680303585,1.39637173,3427.4,3426.9,0.05420091]
[1718680304099,1.39637173,3427.0,3426.0,2.2728]
[1718680304320,4.4952,3427.7,3427.0,0.054197]
[1718680304492,0.50497134,3427.6,3426.0,2.2728]
[1718680304687,0.50001713,3427.5,3427.1,0.054197]
[1718680304891,0.50001713,3427.5,3426.0,2.2728]
[1718680304892,2.12082079,3427.4,3426.0,2.2728]
[1718680305138,2.12082079,3427.4,3427.2,0.05425179]
[1718680305324,2.12082079,3427.4,3426.0,2.2728]
[1718680305624,5.12082079,3427.4,3427.3,0.05425179]
[1718680305837,5.12082079,3427.4,3426.0,2.2728]
[1718680305838,8.31632458,3427.4,3426.0,2.2728]
[1718680306155,2.12082079,3427.3,3426.1,0.05445143]
[1718680307695,5.12082079,3427.3,3426.1,0.05445143]
[1718680307925,2.12082079,3427.2,3425.5,5.34678]
[1718680308225,5.12082079,3427.2,3426.2,0.05455324]
[1718680308431,3.00295038,3427.1,3425.5,5.34678]
[1718680308637,5.12082079,3427.0,3426.3,0.05455324]
[1718680308795,2.12082079,3426.9,3425.5,5.34678]
[1718680308991,4.54682079,3426.9,3425.5,2.4275]
[1718680309220,2.12082079,3426.8,3425.6,0.64761757]
[1718680310694,2.12082079,3426.8,3425.6,0.58924424]
[1718680311324,2.12094362,3426.7,3425.6,0.58924424]
[1718680311524,2.426,3426.9,3425.6,0.58924424]
[1718680311729,4.83675808,3426.8,3425.6,0.05455324]
[1718680311931,4.83675808,3426.8,3425.1,2.4425]
[1718680311932,2.085,3426.4,3425.1,2.4425]
[1718680312227,2.12094512,3426.3,3425.7,0.05497996]
[1718680312527,2.12094512,3426.3,3425.8,0.05499171]
[1718680312704,0.42059451,3426.2,3425.1,2.4425]
[1718680312908,0.42059451,3426.2,3425.9,0.05499171]
[1718680313106,2.085,3426.4,3425.1,2.4425]
[1718680313307,2.12140155,3426.3,3426.0,0.05499171]
[1718680313697,2.12140155,3426.3,3425.1,2.4425]
[1718680313897,2.12140155,3426.3,3426.1,0.05499171]
[1718680314094,2.12140155,3426.3,3425.1,2.4425]
[1718680314329,2.085,3426.4,3425.2,0.64909971]
[1718680315094,2.085,3426.4,3425.2,0.05499171]
[1718680315728,2.085,3426.0,3425.2,0.05499171]
[1718680316326,2.085,3426.0,3425.1,2.4425]
[1718680317032,2.085,3426.0,3425.2,0.0533584]
[1718680317240,0.2085,3425.9,3425.2,0.0533584]
[1718680317421,0.2085,3425.9,3425.1,2.4425]
[1718680317731,0.2085,3425.9,3425.2,0.0533584]
[1718680318029,0.2085,3425.9,3425.1,2.4425]
[1718680318195,2.085,3426.0,3425.1,2.4425]
[1718680318391,2.085,3426.0,3425.2,0.05289174]
[1718680318596,2.085,3426.0,3425.1,2.4425]
[1718680318796,2.085,3426.0,3425.3,0.05289174]
[1718680319044,2.085,3426.0,3425.1,2.4425]
[1718680319194,0.2085,3425.9,3425.0,0.57888]
[1718680319392,2.085,3425.6,3425.2,0.05289174]
[1718680319634,2.085,3425.6,3425.0,0.57888]
[1718680319934,0.2085,3425.5,3425.0,0.57888]
[1718680320130,0.2085,3425.9,3425.0,0.57888]
[1718680321335,0.2085,3425.9,3425.0,3.03238]
[1718680321637,0.2085,3425.9,3425.1,0.05344018]
[1718680322124,0.2085,3425.9,3425.0,0.57888]
[1718680322323,2.085,3425.6,3425.0,0.57888]
[1718680322701,2.085,3425.6,3425.1,0.05344018]
[1718680323636,0.75774,3425.8,3425.1,0.05344018]
[1718680323842,0.5051002,3426.3,3425.1,0.05344018]
[1718680324005,10.8451002,3426.5,3425.2,2.48099271]
[1718680324331,3.0,3426.4,3425.2,2.53443289]
[1718680324534,3.5051002,3426.4,3425.2,2.53443289]
[1718680324753,10.34,3426.5,3425.3,2.97780253]
[1718680324946,10.34,3426.5,3425.4,0.54538427]
[1718680325246,2.96,3426.5,3425.5,2.97763567]
[1718680325410,2.96,3426.5,3425.5,0.05344018]
[1718680325743,5.045,3426.5,3425.5,0.05344018]
[1718680326044,0.5045,3426.4,3425.3,2.91943]
[1718680326239,5.045,3426.5,3425.2,2.4226]
[1718680326542,5.045,3426.5,3425.6,0.05344018]
[1718680326740,5.045,3426.5,3425.2,2.4226]
[1718680327043,5.045,3426.5,3425.5,2.91928]
[1718680327044,2.96,3426.5,3425.5,2.91928]
[1718680327244,2.96,3426.5,3425.6,0.05837541]
[1718680327431,3.50508165,3427.0,3425.8,2.377]
[1718680327752,3.0,3426.9,3425.9,0.05837116]
[1718680327917,3.0,3426.9,3425.8,2.377]
[1718680328105,5.085,3427.3,3425.9,2.91889]
[1718680328438,2.085,3427.3,3425.9,2.97233018]
[1718680328641,0.7755,3427.2,3426.0,0.82684302]
[1718680328846,3.7755,3427.2,3426.0,0.82684302]
[1718680329444,3.7755,3427.2,3426.1,0.05344018]
[1718680329445,2.085,3426.9,3426.1,0.05344018]
[1718680329942,2.085,3426.9,3426.2,0.05308761]
[1718680330108,2.085,3426.9,3425.8,2.377]
[1718680330445,2.085,3426.9,3425.9,0.05308761]
[1718680330607,2.67105,3426.9,3425.9,0.05308761]
[1718680330945,2.4853,3426.8,3425.9,0.05308761]
[1718680331145,5.4853,3426.8,3425.4,0.05837447]
[1718680331347,5.4853,3426.8,3426.0,0.05308761]
[1718680331551,5.4853,3426.8,3425.4,0.05837447]
[1718680331552,3.0,3426.8,3425.4,0.05837447]
[1718680331751,3.0,3426.8,3426.1,0.05308761]
[1718680331911,0.7755,3427.2,3426.1,0.05308761]
[1718680332110,3.7755,3427.2,3425.8,2.97736865]
[1718680332341,3.7755,3427.2,3425.9,0.05308761]
[1718680332342,2.12093568,3427.1,3425.9,0.05308761]
[1718680332511,2.12093568,3427.1,3425.6,2.91915]
[1718680332858,0.79814357,3427.0,3425.7,0.69057076]
[1718680333345,2.1210264,3426.9,3425.9,2.4892]
[1718680333555,3.0,3427.3,3426.2,2.91867]
[1718680333722,0.55496794,3427.7,3426.3,2.97693974]
[1718680333934,0.05,3427.7,3426.4,2.4892]
[1718680334244,0.63966679,3427.7,3426.5,0.60498181]
[1718680334408,0.63966679,3427.7,3426.6,0.05835884]
[1718680334605,0.05,3427.7,3426.6,0.05835884]
[1718680334845,0.05,3427.7,3426.7,0.05308761]
[1718680335209,0.05,3427.7,3426.5,0.54662297]
[1718680335411,0.05,3427.7,3426.8,0.05308761]
[1718680335611,0.05,3427.7,3426.5,0.54662297]
[1718680335908,2.91,3427.8,3426.6,0.9456461]
[1718680336145,2.91,3427.8,3426.8,2.91814]
[1718680336446,2.91,3427.8,3427.0,2.3328]
[1718680336647,2.91,3427.8,3427.1,0.05835099]
[1718680336815,2.91,3427.8,3427.1,0.1114386]
[1718680337020,2.91,3427.8,3427.1,0.64767646]
[1718680337348,4.755,3428.3,3427.1,0.64767646]
[1718680337550,5.12034305,3428.2,3427.1,0.64767646]
[1718680337757,2.12034305,3428.1,3427.1,0.05308761]
[1718680338125,2.085,3427.9,3426.5,2.4795]
[1718680338328,2.12034305,3427.8,3427.2,0.05308761]
[1718680338553,2.085,3427.9,3426.6,2.91831]
[1718680338739,2.085,3427.9,3427.3,0.05308761]
[1718680338949,2.085,3427.9,3426.6,3.16626]
[1718680339152,2.085,3427.9,3427.4,0.05308761]
[1718680339333,2.085,3427.9,3426.7,0.05835412]
[1718680339539,2.085,3427.9,3427.5,0.05308761]
[1718680339736,2.085,3427.9,3426.6,0.24795]
[1718680340060,2.085,3427.9,3427.6,0.05308761]
[1718680340364,2.085,3427.9,3426.6,3.16628]
[1718680340561,2.085,3427.9,3427.7,0.05279788]
[1718680340730,0.2085,3427.8,3426.6,3.16628]
[1718680340931,2.085,3427.9,3427.8,0.05212428]
[1718680341143,2.085,3427.9,3426.6,3.16628]
[1718680341344,2.085,3427.9,3427.8,0.05212428]
[1718680341546,2.085,3427.9,3426.8,2.91817]
[1718680341741,2.085,3427.9,3427.8,0.05212428]
[1718680342061,0.5085,3427.9,3426.9,0.05835113]
[1718680342228,3.0,3428.2,3426.9,0.05835113]
[1718680342428,2.1203446,3428.1,3427.0,0.05213211]
[1718680342664,2.1203446,3428.1,3427.1,0.05835114]
[1718680343230,2.1203446,3428.1,3427.2,0.05213211]
[1718680343960,2.1203446,3428.1,3426.6,0.24795]
[1718680343961,2.085,3427.9,3426.6,0.24795]
[1718680344166,0.42053446,3427.8,3427.3,0.05206557]
[1718680344372,2.085,3427.9,3426.7,0.564595]
[1718680344661,2.085,3427.9,3427.4,0.05206557]
[1718680344842,2.085,3427.9,3426.7,0.564595]
[1718680345225,2.085,3427.9,3426.8,0.05206557]
[1718680345430,0.2085,3427.8,3426.8,0.05206557]
[1718680345869,0.2085,3427.8,3426.9,0.05835644]
[1718680346031,3.0,3428.2,3426.9,0.05835644]
[1718680346232,2.12035918,3428.1,3427.0,0.05211254]
[1718680346871,2.12035918,3428.1,3426.7,3.482845]
[1718680347038,2.12035918,3428.1,3427.1,0.05210863]
[1718680347243,2.12035918,3428.1,3426.9,0.05835164]
[1718680347567,3.15838172,3428.1,3427.0,0.64593466]
[1718680347738,2.12035918,3428.0,3427.1,0.05835164]
[1718680348146,2.12035918,3428.0,3427.2,0.05210863]
[1718680348460,2.12035918,3428.0,3426.7,0.564595]
[1718680348761,2.12035918,3428.0,3426.8,0.0583517]
[1718680348973,0.61583817,3427.9,3426.8,1.02910329]
[1718680349771,3.0,3428.2,3426.8,1.02910329]
[1718680349957,2.12035307,3428.1,3426.8,3.94726329]
[1718680350732,3.0,3428.2,3426.9,2.91806]
[1718680350938,3.0,3428.2,3427.0,0.11039671]
[1718680354145,3.0,3428.2,3427.0,0.052046]
[1718680354340,0.7755,3428.1,3427.0,0.052046]
[1718680357013,0.7755,3428.1,3427.1,0.05835067]
[1718680357161,2.67,3428.3,3427.2,2.3359]
[1718680357493,0.05023067,3428.7,3427.5,2.91756]
[1718680357693,3.41482149,3428.9,3428.1,2.2786]
[1718680357987,2.96552149,3429.5,3428.2,0.11017406]
[1718680358195,2.4607,3429.5,3428.3,0.05833141]
[1718680358419,0.50505215,3429.4,3428.3,0.05833141]
[1718680358559,0.50505215,3429.4,3428.4,0.05184248]
[1718680358883,2.085,3429.7,3428.4,0.05184248]
[1718680359191,2.11950483,3429.6,3428.4,2.9168]
[1718680359403,2.96,3430.0,3428.5,0.10988334]
[1718680359404,3.46482149,3430.0,3428.5,0.10988334]
[1718680359602,2.11935442,3429.9,3428.5,3.02657334]
[1718680359899,0.96250544,3429.8,3428.6,2.91703733]
[1718680360115,0.96250544,3429.8,3428.7,0.05832376]
[1718680360318,0.96250544,3429.8,3428.7,0.05154512]
[1718680362972,0.96250544,3429.8,3428.8,0.05832018]
[1718680363328,3.46460112,3430.0,3428.8,0.05832018]
[1718680363329,2.91,3430.0,3428.9,2.3227]
[1718680363720,2.91,3430.0,3429.0,0.05077062]
[1718680364612,3.0,3429.9,3429.0,0.05077062]
[1718680367030,3.0,3429.9,3427.9,2.3227]
[1718680367031,2.085,3429.5,3427.9,2.3227]
[1718680367252,2.085,3429.5,3429.1,0.05068068]
[1718680367428,2.085,3429.5,3427.9,2.3227]
[1718680367626,2.085,3429.5,3429.2,0.04899419]
[1718680367831,2.085,3429.5,3427.9,2.3227]
[1718680368139,0.55895671,3429.4,3427.9,2.3227]
[1718680368352,3.55895671,3429.4,3427.9,2.3227]
[1718680368656,3.55895671,3429.4,3428.0,0.04899419]
[1718680369412,3.55895671,3429.4,3428.0,0.10733069]
[1718680370752,3.0,3429.7,3428.3,2.91687]
[1718680370925,3.0,3429.7,3428.4,0.0583266]
[1718680371318,3.0,3429.7,3428.5,0.04899419]
[1718680374653,3.0,3429.7,3428.6,0.04899419]
[1718680374963,0.67023622,3429.6,3428.6,0.04899419]
[1718680375150,0.67023622,3429.6,3428.2,2.91697]
[1718680375447,0.67023622,3429.6,3428.7,0.04898246]
[1718680375765,0.67023622,3429.6,3428.2,2.91697]
[1718680376354,0.67023622,3429.6,3428.3,0.04898246]
[1718680376537,0.67023622,3429.6,3428.4,0.29659525]
[1718680376922,0.67023622,3429.6,3428.5,0.04898246]
[1718680377751,0.54829638,3429.6,3428.5,0.04898246]
[1718680378149,0.54829638,3429.6,3428.0,2.91715]
[1718680378463,0.54829638,3429.6,3428.1,0.0583317]
[1718680378667,0.64458964,3429.5,3428.2,0.52981817]
[1718680378829,0.64458964,3429.5,3428.3,0.05833168]
[1718680379468,3.0,3429.7,3428.4,0.04898246]
[1718680379772,2.1194375,3429.6,3428.5,0.05832658]
[1718680380226,5.1194375,3429.6,3428.6,0.04898246]
[1718680380434,3.0,3429.6,3428.6,0.04898246]
[1718680380625,3.0,3429.7,3428.6,0.04898246]
[1718680380972,2.78964948,3429.6,3428.3,2.91687]
[1718680381124,5.11940615,3429.5,3428.7,0.04898246]
[1718680381319,3.0,3429.5,3428.7,0.04898246]
[1718680381525,0.67024333,3429.6,3428.3,2.91687]
[1718680381748,2.11944425,3429.5,3428.3,2.91687]
[1718680382062,3.0,3429.5,3428.4,0.68535728]
[1718680382284,0.67024333,3429.6,3428.4,0.68535728]
[1718680382496,2.11942774,3429.5,3428.4,0.68535728]
[1718680382708,0.30019508,3429.9,3428.7,2.91654]
[1718680382986,0.50463818,3430.3,3429.5,2.91585]
[1718680383139,2.3066,3430.9,3429.5,2.91585]
[1718680383140,2.3066,3430.9,3429.6,0.05830432]
[1718680383351,2.3066,3430.9,3429.8,2.91562]
[1718680383540,2.3066,3430.9,3429.9,0.05830239]
[1718680383737,7.38,3431.0,3429.9,0.69628137]
[1718680383947,2.085,3431.2,3429.9,0.69628137]
[1718680384181,2.11848728,3431.1,3429.9,0.69628137]
[1718680384343,2.11848728,3431.1,3429.9,0.63797898]
[1718680385042,5.11848728,3431.1,3429.9,0.63797898]
[1718680385375,0.95100873,3431.0,3429.9,0.63797898]
[1718680385588,3.0,3431.0,3429.9,0.63797898]
[1718680385946,5.085,3431.2,3429.9,0.63797898]
[1718680386146,5.085,3431.2,3429.9,0.69628137]
[1718680386147,3.0,3431.2,3429.9,0.69628137]
[1718680386373,2.3066,3431.3,3429.0,10.34624]
[1718680386374,2.3066,3431.3,3430.0,2.97373236]
[1718680386539,2.3066,3431.3,3430.0,0.10620995]
[1718680386746,2.3066,3431.3,3429.9,2.91552]
[1718680386940,2.3066,3431.3,3430.0,0.04790759]
[1718680388078,2.3066,3431.3,3430.1,0.05829898]
[1718680388279,3.3177818,3431.3,3430.1,0.36047164]
[1718680388485,3.0,3431.4,3430.2,0.1061675]
[1718680388486,0.50438825,3431.4,3430.2,0.1061675]
[1718680388656,2.3066,3431.9,3430.6,2.91491]
[1718680388843,2.81098825,3432.3,3430.9,2.91466]
[1718680389052,2.81098825,3432.3,3431.1,2.3227]
[1718680389053,2.3066,3432.3,3431.1,2.3227]
[1718680389257,2.3066,3432.3,3431.2,0.05828197]
[1718680389660,2.3066,3432.3,3431.1,2.3227]
[1718680390083,2.3066,3432.3,3431.2,0.0474233]
[1718680390278,2.3066,3432.3,3431.2,0.10570527]
[1718680390579,0.23066,3432.2,3431.2,0.0474233]
[1718680390768,0.23066,3432.2,3430.8,2.91474]
[1718680390968,0.23066,3432.2,3431.3,0.0474233]
[1718680391168,0.23066,3432.2,3431.1,2.91451]
[1718680391369,2.3066,3432.3,3431.2,0.35556041]
[1718680391570,2.3066,3432.3,3431.3,2.97260089]
[1718680391773,0.50438825,3432.7,3431.6,2.91406]
[1718680391955,2.3066,3433.0,3431.7,2.97226395]
[1718680392149,2.3066,3433.0,3431.5,2.3227]
[1718680392362,0.54809882,3432.8,3431.5,2.3227]
[1718680392648,0.54809882,3432.8,3431.6,0.0473179]
[1718680393186,2.63309882,3432.8,3431.6,0.0473179]
[1718680394589,2.63309882,3432.8,3431.2,3.21169954]
[1718680394812,2.63309882,3432.8,3431.7,0.0473179]
[1718680394988,2.81098825,3433.0,3431.7,0.0473179]
[1718680394989,2.81098825,3433.0,3431.7,2.91398]
[1718680395321,2.3066,3433.6,3432.1,2.91365]
[1718680395479,2.3066,3433.6,3432.2,0.05826298]
[1718680395680,2.3066,3433.6,3432.1,2.91365]
[1718680395987,0.43916,3433.5,3432.2,2.97181298]
[1718680396172,0.43916,3433.5,3432.3,0.10446819]
[1718680396375,0.43916,3433.5,3432.3,3.01793819]
[1718680396606,0.43916,3433.5,3432.3,0.10446819]
[1718680396827,0.43916,3433.5,3432.3,0.04620524]
[1718680396975,0.274576,3433.4,3432.3,0.63353876]
[1718680398079,0.274576,3433.4,3432.3,3.54700876]
[1718680398616,0.274576,3433.4,3432.4,2.97166029]
[1718680398930,3.0,3433.5,3432.5,0.05826025]
[1718680399246,0.04,3433.9,3432.8,2.91305]
[1718680399512,0.04,3433.9,3432.9,0.05825232]
[1718680399691,0.04,3433.9,3432.9,0.10445756]
[1718680399896,0.82466,3433.8,3432.9,0.04620524]
[1718680400324,0.82466,3433.8,3432.0,2.91371]
[1718680400485,2.90966,3433.8,3433.0,0.04620524]
[1718680400790,3.0,3433.7,3432.0,2.91367]
[1718680400986,3.0,3433.7,3432.5,2.91331]
[1718680401178,0.594966,3433.6,3432.5,2.91331]
[1718680401418,0.594966,3433.6,3432.6,0.04620524]
[1718680401914,2.3066,3433.3,3431.9,2.3227]
[1718680402084,2.3066,3433.3,3432.7,0.04592046]
[1718680402300,3.0,3433.5,3432.5,2.91332]
[1718680402525,0.68948246,3433.4,3432.8,0.04438808]
[1718680402699,0.68948246,3433.4,3432.4,2.91337]
[1718680402900,3.0,3433.7,3432.9,0.04438808]
[1718680403130,2.085,3433.8,3432.9,0.04438808]
[1718680403326,2.085,3433.8,3432.2,2.91357]
[1718680403728,3.04,3433.9,3432.6,2.91323]
[1718680404033,0.04,3433.9,3432.6,2.91323]
[1718680404233,1.03316,3433.8,3432.7,0.04438808]
[1718680404529,1.03316,3433.8,3432.3,2.91343]
[1718680404736,1.03316,3433.8,3432.8,0.04438808]
[1718680405036,1.03316,3433.8,3432.6,2.91322]
[1718680405235,1.03316,3433.8,3432.9,0.04438808]
[1718680405434,0.637976,3433.7,3432.6,2.91322]
[1718680405730,0.637976,3433.7,3432.7,0.04438808]
[1718680405945,2.722976,3433.7,3432.7,0.04438808]
[1718680406139,2.722976,3433.7,3431.9,5.23653]
[1718680406364,2.722976,3433.7,3431.9,2.3227]
[1718680406542,2.722976,3433.7,3432.0,0.04435298]
[1718680406543,2.085,3433.3,3432.0,0.04435298]
[1718680406836,5.9306,3433.2,3431.5,2.3227]
[1718680407001,2.085,3432.9,3431.5,2.3227]
[1718680407211,2.085,3432.9,3431.6,0.04404088]
[1718680407413,0.40938325,3432.8,3431.6,0.04404088]
[1718680408516,0.40938325,3432.8,3431.3,2.91433]
[1718680408517,0.40938325,3432.8,3431.1,2.91446]
[1718680408730,0.40938325,3432.8,3431.7,0.04404088]
[1718680408929,0.40938325,3432.8,3431.1,2.91446]
[1718680409137,0.40938325,3432.8,3431.8,0.04437638]
[1718680409449,3.16343833,3432.7,3431.1,2.91446]
[1718680409739,3.0,3432.6,3431.9,0.04437638]
[1718680409948,3.0,3432.6,3431.2,2.91442]
[1718680410248,3.0,3432.6,3431.3,0.04448175]
[1718680410450,3.0,3433.0,3431.4,2.97247122]
[1718680410654,2.3066,3433.1,3431.7,2.91395]
[1718680411346,2.3066,3433.1,3431.8,0.04448175]
[1718680411650,5.159,3433.0,3431.8,0.04448175]
[1718680411849,2.085,3433.0,3431.2,2.9144]
[1718680412017,2.085,3433.0,3431.0,5.23726]
[1718680412018,0.43916,3432.9,3431.9,0.04448175]
[1718680412213,0.43916,3432.9,3431.3,3.729456]
[1718680412416,3.43916,3432.9,3432.0,0.04448175]
[1718680412726,3.94332479,3432.9,3431.3,0.815166]
[1718680412941,3.43916,3432.9,3431.3,0.815166]
[1718680413144,0.49701865,3432.8,3431.4,0.04448175]
[1718680413549,2.3066,3432.6,3431.4,0.04448175]
[1718680414246,2.3066,3432.6,3431.5,0.04448175]
[1718680414435,2.3066,3432.6,3431.3,2.91434]
[1718680414753,2.3066,3432.6,3431.6,0.04448175]